[Event "Titled Tuesday Blitz March 21 Late 2023"]
[White "Cella, Glaucio Dalla Cortt"]
[Black "Fernandez Siles, Luis"]
[WhiteFideId "2119455"]
[BlackFideId "2209420"]
[WhiteElo "2011"]
[BlackElo "2186"]
[Result "1-0"]
[Round "09"]
[TimeControl "180+2"]
[Date "2023.03.21"]
[WhiteClock "0:00:54"]
[BlackClock "0:00:14"]

1. e4 {[%clk 0:03:00]}  c5 {[%clk 0:02:56]} 2. Nf3 {[%clk 0:03:01]}  Nc6 {[%clk 0:02:57]} 3. c3 {[%clk 0:03:01]}  Nf6 {[%clk 0:02:56]} 4. e5 {[%clk 0:03:02]}  Nd5 {[%clk 0:02:55]} 5. d4 {[%clk 0:03:03]}  cxd4 {[%clk 0:02:55]} 6. cxd4 {[%clk 0:03:03]}  d6 {[%clk 0:02:55]} 7. Nc3 {[%clk 0:03:04]}  dxe5 {[%clk 0:02:54]} 8. dxe5 {[%clk 0:03:04]}  Nxc3 {[%clk 0:02:54]} 9. Qxd8+ {[%clk 0:03:04]}  Nxd8 {[%clk 0:02:55]} 10. bxc3 {[%clk 0:03:04]}  a6 {[%clk 0:02:51]} 11. Be3 {[%clk 0:03:03]}  Nc6 {[%clk 0:02:46]} 12. Bd4 {[%clk 0:03:03]}  Be6 {[%clk 0:02:24]} 13. Bd3 {[%clk 0:02:25]}  Bd5 {[%clk 0:02:17]} 14. Ke2 {[%clk 0:02:25]}  e6 {[%clk 0:02:08]} 15. Ke3 {[%clk 0:02:23]}  Bxf3 {[%clk 0:02:00]} 16. Kxf3 {[%clk 0:02:16]}  O-O-O {[%clk 0:01:56]} 17. Ke4 {[%clk 0:02:11]}  Nxd4 {[%clk 0:01:47]} 18. cxd4 {[%clk 0:02:06]}  Rd7 {[%clk 0:01:28]} 19. Rhc1+ {[%clk 0:02:01]}  Rc7 {[%clk 0:01:29]} 20. Rxc7+ {[%clk 0:02:00]}  Kxc7 {[%clk 0:01:30]} 21. Rc1+ {[%clk 0:02:01]}  Kb8 {[%clk 0:01:16]} 22. Rb1 {[%clk 0:01:39]}  Kc7 {[%clk 0:01:16]} 23. f4 {[%clk 0:01:33]}  Be7 {[%clk 0:01:12]} 24. a4 {[%clk 0:01:33]}  f5+ {[%clk 0:01:06]} 25. Ke3 {[%clk 0:01:30]}  Rb8 {[%clk 0:00:59]} 26. Bc4 {[%clk 0:01:25]}  Kd7 {[%clk 0:00:59]} 27. Bxa6 {[%clk 0:01:20]}  Kc6 {[%clk 0:00:48]} 28. Bc4 {[%clk 0:01:18]}  g5 {[%clk 0:00:39]} 29. g3 {[%clk 0:01:13]}  gxf4+ {[%clk 0:00:39]} 30. gxf4 {[%clk 0:01:14]}  Rg8 {[%clk 0:00:19]} 31. Bxe6 {[%clk 0:01:11]}  Rg2 {[%clk 0:00:19]} 32. d5+ {[%clk 0:01:11]}  Kc5 {[%clk 0:00:19]} 33. Rxb7 {[%clk 0:01:06]}  Bh4 {[%clk 0:00:19]} 34. d6 {[%clk 0:01:03]}  Rxh2 {[%clk 0:00:18]} 35. Bxf5 {[%clk 0:00:58]}  Bf2+ {[%clk 0:00:14]} 36. Kf3 {[%clk 0:00:55]}  Bd4 {[%clk 0:00:14]} 37. d7 {[%clk 0:00:54]} 1-0


[Site "https://www.chess.com"]

[Event "Titled Tuesday Blitz March 21 Late 2023"]
[White "Reprintsev, Alexander"]
[Black "Wang, Alexander J"]
[WhiteFideId "14100541"]
[BlackFideId "30955270"]
[WhiteElo "2229"]
[BlackElo "2292"]
[Result "1-0"]
[Round "09"]
[TimeControl "180+2"]
[Date "2023.03.21"]
[WhiteClock "0:01:45"]
[BlackClock "0:01:18"]

1. e4 {[%clk 0:03:00]}  c5 {[%clk 0:02:57]} 2. b3 {[%clk 0:03:00]}  d6 {[%clk 0:02:57]} 3. Bb2 {[%clk 0:03:00]}  Nc6 {[%clk 0:02:55]} 4. f4 {[%clk 0:02:58]}  e6 {[%clk 0:02:52]} 5. Nc3 {[%clk 0:02:57]}  Nf6 {[%clk 0:02:51]} 6. Qe2 {[%clk 0:02:57]}  Be7 {[%clk 0:02:50]} 7. O-O-O {[%clk 0:02:57]}  O-O {[%clk 0:02:49]} 8. g4 {[%clk 0:02:58]}  d5 {[%clk 0:02:47]} 9. g5 {[%clk 0:02:57]}  Nxe4 {[%clk 0:02:46]} 10. Nxe4 {[%clk 0:02:57]}  dxe4 {[%clk 0:02:47]} 11. Qxe4 {[%clk 0:02:57]}  Qd5 {[%clk 0:02:42]} 12. Bd3 {[%clk 0:02:57]}  Qxe4 {[%clk 0:02:37]} 13. Bxe4 {[%clk 0:02:57]}  Nd4 {[%clk 0:02:27]} 14. c3 {[%clk 0:02:55]}  Nf5 {[%clk 0:02:25]} 15. Nf3 {[%clk 0:02:52]}  g6 {[%clk 0:02:23]} 16. h4 {[%clk 0:02:51]}  Rb8 {[%clk 0:02:19]} 17. h5 {[%clk 0:02:51]}  b5 {[%clk 0:02:16]} 18. hxg6 {[%clk 0:02:48]}  fxg6 {[%clk 0:02:17]} 19. Rh3 {[%clk 0:02:45]}  Bb7 {[%clk 0:02:04]} 20. Bxb7 {[%clk 0:02:45]}  Rxb7 {[%clk 0:02:05]} 21. Re1 {[%clk 0:02:38]}  Bd6 {[%clk 0:02:03]} 22. Ne5 {[%clk 0:02:30]}  Ne7 {[%clk 0:01:57]} 23. c4 {[%clk 0:02:22]}  b4 {[%clk 0:01:57]} 24. Nd3 {[%clk 0:02:20]}  Bxf4 {[%clk 0:01:53]} 25. Nxf4 {[%clk 0:02:15]}  Rxf4 {[%clk 0:01:46]} 26. Rxe6 {[%clk 0:02:01]}  Nf5 {[%clk 0:01:37]} 27. Re8+ {[%clk 0:01:53]}  Kf7 {[%clk 0:01:36]} 28. Rc8 {[%clk 0:01:48]}  Re7 {[%clk 0:01:23]} 29. Rxh7+ {[%clk 0:01:46]}  Ke6 {[%clk 0:01:22]} 30. Rxe7+ {[%clk 0:01:46]}  Kxe7 {[%clk 0:01:23]} 31. Rxc5 {[%clk 0:01:46]}  Rf1+ {[%clk 0:01:20]} 32. Kc2 {[%clk 0:01:45]}  Rf2 {[%clk 0:01:20]} 33. Bf6+ {[%clk 0:01:45]}  Kf7 {[%clk 0:01:19]} 34. Rc7+ {[%clk 0:01:45]}  Ke6 {[%clk 0:01:19]} 35. Rxa7 {[%clk 0:01:45]}  Ne3+ {[%clk 0:01:18]} 36. Kd3 {[%clk 0:01:45]} 1-0


[Site "https://www.chess.com"]

[Event "Titled Tuesday Blitz March 21 Late 2023"]
[White "Lauridsen, Jesper Morch"]
[Black "Omelja, Artem"]
[WhiteFideId "1401890"]
[BlackFideId "14119846"]
[WhiteElo "2285"]
[BlackElo "2404"]
[Result "0-1"]
[Round "09"]
[TimeControl "180+2"]
[Date "2023.03.21"]
[WhiteClock "0:01:24"]
[BlackClock "0:02:34"]

1. e4 {[%clk 0:03:00]}  c5 {[%clk 0:02:59]} 2. Nf3 {[%clk 0:03:01]}  Nc6 {[%clk 0:02:58]} 3. d4 {[%clk 0:03:01]}  cxd4 {[%clk 0:02:59]} 4. Nxd4 {[%clk 0:03:02]}  Nf6 {[%clk 0:02:59]} 5. Nc3 {[%clk 0:03:02]}  e5 {[%clk 0:02:59]} 6. Ndb5 {[%clk 0:03:01]}  d6 {[%clk 0:03:00]} 7. Nd5 {[%clk 0:03:00]}  Nxd5 {[%clk 0:02:59]} 8. exd5 {[%clk 0:03:01]}  Nb8 {[%clk 0:03:00]} 9. c3 {[%clk 0:03:01]}  Be7 {[%clk 0:02:59]} 10. a4 {[%clk 0:02:43]}  O-O {[%clk 0:02:58]} 11. Be2 {[%clk 0:02:42]}  f5 {[%clk 0:02:57]} 12. O-O {[%clk 0:02:42]}  f4 {[%clk 0:02:57]} 13. Bg4 {[%clk 0:02:37]}  Nd7 {[%clk 0:02:53]} 14. Be6+ {[%clk 0:02:35]}  Kh8 {[%clk 0:02:53]} 15. g3 {[%clk 0:02:31]}  a6 {[%clk 0:02:42]} 16. Na3 {[%clk 0:02:28]}  f3 {[%clk 0:02:40]} 17. Bg4 {[%clk 0:02:25]}  e4 {[%clk 0:02:40]} 18. Nc4 {[%clk 0:02:12]}  Nf6 {[%clk 0:02:39]} 19. Bxc8 {[%clk 0:02:09]}  Qxc8 {[%clk 0:02:39]} 20. Ne3 {[%clk 0:01:31]}  Qh3 {[%clk 0:02:36]} 21. Kh1 {[%clk 0:01:25]}  Ng4 {[%clk 0:02:35]} 22. Nxg4 {[%clk 0:01:24]}  Qg2# {[%clk 0:02:34]} 0-1


[Site "https://www.chess.com"]

[Event "Titled Tuesday Blitz March 21 Late 2023"]
[White "angelgab3"]
[Black "Battlecruiser_Operational"]
[WhiteElo "2523"]
[BlackElo "2273"]
[Result "1-0"]
[Round "09"]
[TimeControl "180+2"]
[Date "2023.03.21"]
[WhiteClock "0:00:11"]
[BlackClock "0:00:02"]

1. e4 {[%clk 0:03:00]}  e6 {[%clk 0:03:00]} 2. d4 {[%clk 0:03:00]}  d5 {[%clk 0:03:00]} 3. Nc3 {[%clk 0:03:01]}  h6 {[%clk 0:03:00]} 4. Nf3 {[%clk 0:02:55]}  Nf6 {[%clk 0:02:57]} 5. Bd3 {[%clk 0:02:50]}  c5 {[%clk 0:02:54]} 6. exd5 {[%clk 0:02:49]}  cxd4 {[%clk 0:02:46]} 7. Bb5+ {[%clk 0:02:44]}  Bd7 {[%clk 0:02:37]} 8. Bxd7+ {[%clk 0:02:33]}  Qxd7 {[%clk 0:02:01]} 9. dxe6 {[%clk 0:02:22]}  Qxe6+ {[%clk 0:01:59]} 10. Ne2 {[%clk 0:02:23]}  Nc6 {[%clk 0:01:57]} 11. O-O {[%clk 0:02:23]}  Bc5 {[%clk 0:01:56]} 12. Re1 {[%clk 0:02:20]}  O-O-O {[%clk 0:01:54]} 13. Nexd4 {[%clk 0:02:04]}  Bxd4 {[%clk 0:01:49]} 14. Rxe6 {[%clk 0:01:48]}  Bxf2+ {[%clk 0:01:48]} 15. Kxf2 {[%clk 0:01:49]}  Rxd1 {[%clk 0:01:48]} 16. Re1 {[%clk 0:01:40]}  Rxe1 {[%clk 0:01:26]} 17. Nxe1 {[%clk 0:01:41]}  Rd8 {[%clk 0:01:16]} 18. h3 {[%clk 0:01:04]}  Ne4+ {[%clk 0:01:04]} 19. Kf3 {[%clk 0:00:55]}  f5 {[%clk 0:01:03]} 20. Be3 {[%clk 0:00:45]}  g5 {[%clk 0:00:57]} 21. Nd3 {[%clk 0:00:31]}  b5 {[%clk 0:00:51]} 22. Re1 {[%clk 0:00:27]}  Nd4+ {[%clk 0:00:23]} 23. Bxd4 {[%clk 0:00:27]}  Rxd4 {[%clk 0:00:24]} 24. g4 {[%clk 0:00:23]}  fxg4+ {[%clk 0:00:17]} 25. hxg4 {[%clk 0:00:21]}  Nf6 {[%clk 0:00:12]} 26. Re5 {[%clk 0:00:15]}  a6 {[%clk 0:00:11]} 27. Re6 {[%clk 0:00:14]}  Nxg4 {[%clk 0:00:11]} 28. Rxa6 {[%clk 0:00:15]}  Kc7 {[%clk 0:00:07]} 29. Re6 {[%clk 0:00:10]}  h5 {[%clk 0:00:03]} 30. Re7+ {[%clk 0:00:10]}  Kd6 {[%clk 0:00:02]} 31. Rg7 {[%clk 0:00:11]} 1-0


[Site "https://www.chess.com"]

[Event "Titled Tuesday Blitz March 21 Late 2023"]
[White "Quinones Garcia, Santiago"]
[Black "TigranHH"]
[WhiteFideId "4408497"]
[WhiteElo "2263"]
[BlackElo "2320"]
[Result "1-0"]
[Round "09"]
[TimeControl "180+2"]
[Date "2023.03.21"]
[WhiteClock "0:01:07"]
[BlackClock "0:00:16"]

1. d4 {[%clk 0:02:55]}  Nf6 {[%clk 0:02:59]} 2. c4 {[%clk 0:02:54]}  e6 {[%clk 0:03:00]} 3. Nf3 {[%clk 0:02:55]}  d5 {[%clk 0:02:59]} 4. g3 {[%clk 0:02:56]}  Bb4+ {[%clk 0:02:58]} 5. Bd2 {[%clk 0:02:54]}  Be7 {[%clk 0:02:59]} 6. Bg2 {[%clk 0:02:54]}  O-O {[%clk 0:02:59]} 7. O-O {[%clk 0:02:55]}  Ne4 {[%clk 0:02:56]} 8. Bf4 {[%clk 0:02:55]}  c6 {[%clk 0:02:56]} 9. Qc2 {[%clk 0:02:54]}  Nd7 {[%clk 0:02:56]} 10. Nbd2 {[%clk 0:02:53]}  g5 {[%clk 0:02:37]} 11. Be3 {[%clk 0:02:50]}  Nd6 {[%clk 0:02:33]} 12. b3 {[%clk 0:02:49]}  Nf5 {[%clk 0:02:30]} 13. Qd3 {[%clk 0:02:46]}  Nxe3 {[%clk 0:02:16]} 14. Qxe3 {[%clk 0:02:47]}  Bf6 {[%clk 0:02:12]} 15. Rad1 {[%clk 0:02:46]}  b6 {[%clk 0:01:57]} 16. Ne5 {[%clk 0:02:45]}  Nxe5 {[%clk 0:01:50]} 17. dxe5 {[%clk 0:02:46]}  Bg7 {[%clk 0:01:51]} 18. Ne4 {[%clk 0:02:42]}  Bxe5 {[%clk 0:01:24]} 19. Nxg5 {[%clk 0:02:41]}  Qf6 {[%clk 0:01:11]} 20. Nf3 {[%clk 0:02:30]}  Bd6 {[%clk 0:01:12]} 21. cxd5 {[%clk 0:02:27]}  cxd5 {[%clk 0:01:07]} 22. Qd3 {[%clk 0:02:25]}  a5 {[%clk 0:01:04]} 23. Rfe1 {[%clk 0:02:23]}  Ba6 {[%clk 0:01:04]} 24. Qd2 {[%clk 0:02:23]}  Bb4 {[%clk 0:01:03]} 25. Qc2 {[%clk 0:02:20]}  Bxe1 {[%clk 0:01:03]} 26. Rxe1 {[%clk 0:02:21]}  Rac8 {[%clk 0:01:03]} 27. Qd2 {[%clk 0:02:21]}  Rc5 {[%clk 0:00:58]} 28. Nd4 {[%clk 0:02:19]}  e5 {[%clk 0:00:51]} 29. Nf3 {[%clk 0:02:16]}  d4 {[%clk 0:00:50]} 30. b4 {[%clk 0:02:07]}  Rc3 {[%clk 0:00:49]} 31. bxa5 {[%clk 0:02:07]}  bxa5 {[%clk 0:00:48]} 32. Ng5 {[%clk 0:02:06]}  Qg7 {[%clk 0:00:34]} 33. Ne4 {[%clk 0:02:05]}  Rc7 {[%clk 0:00:34]} 34. Qxa5 {[%clk 0:02:04]}  Rc6 {[%clk 0:00:29]} 35. Nc5 {[%clk 0:02:00]}  Rxc5 {[%clk 0:00:18]} 36. Qxc5 {[%clk 0:02:00]}  Qf6 {[%clk 0:00:15]} 37. Bf3 {[%clk 0:01:58]}  Qe6 {[%clk 0:00:14]} 38. a4 {[%clk 0:01:56]}  Rc8 {[%clk 0:00:15]} 39. Qa7 {[%clk 0:01:54]}  Bc4 {[%clk 0:00:13]} 40. a5 {[%clk 0:01:53]}  Bd5 {[%clk 0:00:13]} 41. Bxd5 {[%clk 0:01:47]}  Qxd5 {[%clk 0:00:14]} 42. a6 {[%clk 0:01:48]}  e4 {[%clk 0:00:14]} 43. Rb1 {[%clk 0:01:38]}  d3 {[%clk 0:00:12]} 44. exd3 {[%clk 0:01:38]}  exd3 {[%clk 0:00:12]} 45. Rb8 {[%clk 0:01:39]}  Rxb8 {[%clk 0:00:10]} 46. Qxb8+ {[%clk 0:01:39]}  Kg7 {[%clk 0:00:11]} 47. a7 {[%clk 0:01:33]}  d2 {[%clk 0:00:12]} 48. Qb2+ {[%clk 0:01:33]}  f6 {[%clk 0:00:11]} 49. Qxd2 {[%clk 0:01:34]}  Qxd2 {[%clk 0:00:10]} 50. a8=Q {[%clk 0:01:35]}  Qd1+ {[%clk 0:00:10]} 51. Kg2 {[%clk 0:01:35]}  Qd4 {[%clk 0:00:11]} 52. h4 {[%clk 0:01:35]}  Qe5 {[%clk 0:00:11]} 53. Kh3 {[%clk 0:01:35]}  Qe6+ {[%clk 0:00:11]} 54. Kg2 {[%clk 0:01:35]}  Qe5 {[%clk 0:00:11]} 55. Qf3 {[%clk 0:01:35]}  Qd4 {[%clk 0:00:11]} 56. Qc6 {[%clk 0:01:34]}  Qe5 {[%clk 0:00:11]} 57. g4 {[%clk 0:01:33]}  Qf4 {[%clk 0:00:11]} 58. f3 {[%clk 0:01:33]}  Qd2+ {[%clk 0:00:11]} 59. Kg3 {[%clk 0:01:33]}  Qe3 {[%clk 0:00:12]} 60. Qd7+ {[%clk 0:01:32]}  Kg6 {[%clk 0:00:12]} 61. Qf5+ {[%clk 0:01:22]}  Kg7 {[%clk 0:00:12]} 62. Qe4 {[%clk 0:01:16]}  Qg1+ {[%clk 0:00:12]} 63. Kf4 {[%clk 0:01:16]}  Qh2+ {[%clk 0:00:12]} 64. Kf5 {[%clk 0:01:17]}  Qxh4 {[%clk 0:00:12]} 65. Qe7+ {[%clk 0:01:16]}  Kg8 {[%clk 0:00:13]} 66. Qxf6 {[%clk 0:01:12]}  Qf2 {[%clk 0:00:12]} 67. Qd8+ {[%clk 0:01:11]}  Kg7 {[%clk 0:00:12]} 68. Qd7+ {[%clk 0:01:11]}  Kg8 {[%clk 0:00:13]} 69. Qc8+ {[%clk 0:01:11]}  Kg7 {[%clk 0:00:14]} 70. Qb7+ {[%clk 0:01:11]}  Kg8 {[%clk 0:00:14]} 71. Qd5+ {[%clk 0:01:07]}  Kg7 {[%clk 0:00:14]} 72. f4 {[%clk 0:01:08]}  Qc2+ {[%clk 0:00:14]} 73. Kg5 {[%clk 0:01:07]}  Qf2 {[%clk 0:00:14]} 74. Qd7+ {[%clk 0:01:06]}  Kg8 {[%clk 0:00:14]} 75. Qc8+ {[%clk 0:01:06]}  Kg7 {[%clk 0:00:15]} 76. Qc7+ {[%clk 0:01:06]}  Kg8 {[%clk 0:00:15]} 77. Kf6 {[%clk 0:01:06]}  Qb2+ {[%clk 0:00:15]} 78. Qe5 {[%clk 0:01:06]}  Qb6+ {[%clk 0:00:15]} 79. Qe6+ {[%clk 0:01:06]}  Qxe6+ {[%clk 0:00:16]} 80. Kxe6 {[%clk 0:01:07]}  Kg7 {[%clk 0:00:16]} 81. Ke7 {[%clk 0:01:06]}  Kg6 {[%clk 0:00:16]} 82. f5+ {[%clk 0:01:07]} 1-0


[Site "https://www.chess.com"]

[Event "Titled Tuesday Blitz March 21 Late 2023"]
[White "Balla, Tamas-Kristof"]
[Black "Jiganchine, Roman"]
[WhiteFideId "1208497"]
[BlackFideId "2603667"]
[WhiteElo "2334"]
[BlackElo "2319"]
[Result "0-1"]
[Round "09"]
[TimeControl "180+2"]
[Date "2023.03.21"]
[WhiteClock "0:00:01"]
[BlackClock "0:00:05"]

1. e4 {[%clk 0:03:00]}  c6 {[%clk 0:02:59]} 2. d4 {[%clk 0:03:00]}  d5 {[%clk 0:02:59]} 3. exd5 {[%clk 0:03:01]}  cxd5 {[%clk 0:02:59]} 4. c4 {[%clk 0:03:02]}  Nf6 {[%clk 0:02:58]} 5. Nc3 {[%clk 0:03:00]}  Nc6 {[%clk 0:02:58]} 6. Bg5 {[%clk 0:02:59]}  dxc4 {[%clk 0:02:47]} 7. d5 {[%clk 0:02:59]}  Na5 {[%clk 0:02:40]} 8. Bxc4 {[%clk 0:02:58]}  Nxc4 {[%clk 0:02:25]} 9. Qa4+ {[%clk 0:02:58]}  Bd7 {[%clk 0:02:25]} 10. Qxc4 {[%clk 0:02:59]}  Rc8 {[%clk 0:02:15]} 11. Qd3 {[%clk 0:02:48]}  Qb6 {[%clk 0:02:07]} 12. O-O-O {[%clk 0:02:41]}  g6 {[%clk 0:01:49]} 13. Bxf6 {[%clk 0:02:29]}  Qxf6 {[%clk 0:01:50]} 14. Nf3 {[%clk 0:02:25]}  Bg7 {[%clk 0:01:49]} 15. h4 {[%clk 0:02:19]}  O-O {[%clk 0:01:47]} 16. h5 {[%clk 0:02:18]}  Bf5 {[%clk 0:01:47]} 17. Qe3 {[%clk 0:02:06]}  Qa6 {[%clk 0:01:43]} 18. hxg6 {[%clk 0:01:40]}  Qxa2 {[%clk 0:01:27]} 19. gxf7+ {[%clk 0:01:31]}  Kh8 {[%clk 0:01:24]} 20. Nd4 {[%clk 0:01:05]}  Qb1+ {[%clk 0:01:08]} 21. Kd2 {[%clk 0:01:04]}  Qxb2+ {[%clk 0:01:07]} 22. Ke1 {[%clk 0:01:04]}  Rxc3 {[%clk 0:01:06]} 23. Qxe7 {[%clk 0:00:48]}  Bg6 {[%clk 0:00:55]} 24. Ne6 {[%clk 0:00:42]}  Rc1 {[%clk 0:00:34]} 25. Nxf8 {[%clk 0:00:32]}  Qc3+ {[%clk 0:00:22]} 26. Ke2 {[%clk 0:00:24]}  Qc2+ {[%clk 0:00:17]} 27. Rd2 {[%clk 0:00:23]}  Qc4+ {[%clk 0:00:17]} 28. Kf3 {[%clk 0:00:20]}  Rc3+ {[%clk 0:00:15]} 29. Qe3 {[%clk 0:00:17]}  Rxe3+ {[%clk 0:00:15]} 30. fxe3 {[%clk 0:00:18]}  Bxf8 {[%clk 0:00:15]} 31. d6 {[%clk 0:00:17]}  Qc6+ {[%clk 0:00:14]} 32. Ke2 {[%clk 0:00:17]}  Qd7 {[%clk 0:00:15]} 33. Rf1 {[%clk 0:00:16]}  Kg7 {[%clk 0:00:15]} 34. Rd4 {[%clk 0:00:15]}  Bxf7 {[%clk 0:00:15]} 35. Rdf4 {[%clk 0:00:13]}  Bg6 {[%clk 0:00:15]} 36. Rxf8 {[%clk 0:00:12]}  Qxd6 {[%clk 0:00:15]} 37. R8f4 {[%clk 0:00:12]}  Qa3 {[%clk 0:00:14]} 38. Rd1 {[%clk 0:00:10]}  Qb2+ {[%clk 0:00:14]} 39. Kf1 {[%clk 0:00:09]}  Qb5+ {[%clk 0:00:14]} 40. Kg1 {[%clk 0:00:07]}  Qe5 {[%clk 0:00:14]} 41. Rd7+ {[%clk 0:00:07]}  Kh6 {[%clk 0:00:14]} 42. Rdd4 {[%clk 0:00:01]}  Qxe3+ {[%clk 0:00:14]} 43. Kh2 {[%clk 0:00:02]}  Qe6 {[%clk 0:00:14]} 44. Rh4+ {[%clk 0:00:03]}  Kg7 {[%clk 0:00:14]} 45. Rhf4 {[%clk 0:00:03]}  b5 {[%clk 0:00:13]} 46. Rb4 {[%clk 0:00:03]}  a6 {[%clk 0:00:13]} 47. Rbd4 {[%clk 0:00:04]}  Qe5 {[%clk 0:00:13]} 48. Kg1 {[%clk 0:00:03]}  Kh6 {[%clk 0:00:11]} 49. Kf2 {[%clk 0:00:04]}  Kg7 {[%clk 0:00:11]} 50. Rd7+ {[%clk 0:00:03]}  Kh6 {[%clk 0:00:10]} 51. Rdd4 {[%clk 0:00:03]}  a5 {[%clk 0:00:10]} 52. Rh4+ {[%clk 0:00:04]}  Kg7 {[%clk 0:00:10]} 53. Rhg4 {[%clk 0:00:04]}  Qe6 {[%clk 0:00:10]} 54. Kg3 {[%clk 0:00:04]}  b4 {[%clk 0:00:10]} 55. Rc4 {[%clk 0:00:02]}  Qe5+ {[%clk 0:00:09]} 56. Kh3 {[%clk 0:00:02]}  Qd6 {[%clk 0:00:08]} 57. Rcd4 {[%clk 0:00:02]}  Qe6 {[%clk 0:00:08]} 58. Rc4 {[%clk 0:00:03]}  h5 {[%clk 0:00:08]} 59. Rc7+ {[%clk 0:00:02]}  Kh6 {[%clk 0:00:08]} 60. Rc6 {[%clk 0:00:03]}  Qxg4+ {[%clk 0:00:08]} 61. Kh2 {[%clk 0:00:04]}  Qf4+ {[%clk 0:00:08]} 62. Kh1 {[%clk 0:00:04]}  Qe4 {[%clk 0:00:08]} 63. Rf6 {[%clk 0:00:03]}  Qe5 {[%clk 0:00:08]} 64. Ra6 {[%clk 0:00:03]}  Qe8 {[%clk 0:00:07]} 65. g3 {[%clk 0:00:03]}  Qb8 {[%clk 0:00:07]} 66. Kh2 {[%clk 0:00:03]}  b3 {[%clk 0:00:07]} 67. Kh3 {[%clk 0:00:03]}  b2 {[%clk 0:00:07]} 68. Rxa5 {[%clk 0:00:04]}  b1=Q {[%clk 0:00:06]} 69. Ra2 {[%clk 0:00:02]}  Qh1+ {[%clk 0:00:06]} 70. Rh2 {[%clk 0:00:01]}  Qc8+ {[%clk 0:00:06]} 71. g4 {[%clk 0:00:01]}  Qxg4# {[%clk 0:00:05]} 0-1


[Site "https://www.chess.com"]

[Event "Titled Tuesday Blitz March 21 Late 2023"]
[White "Bhavikatti, Neil"]
[Black "Olsson, William"]
[WhiteFideId "30935024"]
[BlackFideId "1741721"]
[WhiteElo "2349"]
[BlackElo "2197"]
[Result "1-0"]
[Round "09"]
[TimeControl "180+2"]
[Date "2023.03.21"]
[WhiteClock "0:02:08"]
[BlackClock "0:01:43"]

1. d4 {[%clk 0:03:00]}  d5 {[%clk 0:02:59]} 2. c4 {[%clk 0:03:01]}  e6 {[%clk 0:02:57]} 3. Nc3 {[%clk 0:03:01]}  c6 {[%clk 0:02:57]} 4. cxd5 {[%clk 0:03:01]}  exd5 {[%clk 0:02:57]} 5. Qc2 {[%clk 0:03:02]}  Nf6 {[%clk 0:02:56]} 6. Bg5 {[%clk 0:03:00]}  Be7 {[%clk 0:02:56]} 7. e3 {[%clk 0:03:00]}  Bg4 {[%clk 0:02:55]} 8. Bd3 {[%clk 0:02:59]}  Nbd7 {[%clk 0:02:54]} 9. Nge2 {[%clk 0:02:54]}  Bh5 {[%clk 0:02:53]} 10. Nf4 {[%clk 0:02:53]}  Bg6 {[%clk 0:02:51]} 11. Nxg6 {[%clk 0:02:53]}  hxg6 {[%clk 0:02:52]} 12. h3 {[%clk 0:02:50]}  Rh5 {[%clk 0:02:48]} 13. Bf4 {[%clk 0:02:49]}  g5 {[%clk 0:02:47]} 14. Bg3 {[%clk 0:02:47]}  g4 {[%clk 0:02:47]} 15. O-O-O {[%clk 0:02:38]}  gxh3 {[%clk 0:02:46]} 16. Rxh3 {[%clk 0:02:36]}  Rxh3 {[%clk 0:02:46]} 17. gxh3 {[%clk 0:02:37]}  Nf8 {[%clk 0:02:41]} 18. e4 {[%clk 0:02:32]}  dxe4 {[%clk 0:02:39]} 19. Bxe4 {[%clk 0:02:22]}  Nxe4 {[%clk 0:02:37]} 20. Qxe4 {[%clk 0:02:23]}  Qd7 {[%clk 0:02:11]} 21. d5 {[%clk 0:02:21]}  cxd5 {[%clk 0:01:58]} 22. Nxd5 {[%clk 0:02:21]}  Rc8+ {[%clk 0:01:57]} 23. Kb1 {[%clk 0:02:20]}  Ne6 {[%clk 0:01:56]} 24. Nf6+ {[%clk 0:02:12]}  Bxf6 {[%clk 0:01:53]} 25. Rxd7 {[%clk 0:02:13]}  Kxd7 {[%clk 0:01:53]} 26. Qxb7+ {[%clk 0:02:13]}  Nc7 {[%clk 0:01:50]} 27. Qxa7 {[%clk 0:02:10]}  Bd8 {[%clk 0:01:45]} 28. Qd4+ {[%clk 0:02:09]}  Ke8 {[%clk 0:01:43]} 29. Qxg7 {[%clk 0:02:09]}  Ne6 {[%clk 0:01:43]} 30. Qg8+ {[%clk 0:02:08]} 1-0


[Site "https://www.chess.com"]

[Event "Titled Tuesday Blitz March 21 Late 2023"]
[White "sebastianmarinp"]
[Black "Baches Garcia, Guillermo"]
[BlackFideId "2209764"]
[WhiteElo "2310"]
[BlackElo "2440"]
[Result "0-1"]
[Round "09"]
[TimeControl "180+2"]
[Date "2023.03.21"]
[WhiteClock "0:00:06"]
[BlackClock "0:01:04"]

1. e4 {[%clk 0:03:00]}  d5 {[%clk 0:02:59]} 2. exd5 {[%clk 0:03:00]}  Qxd5 {[%clk 0:03:00]} 3. Nc3 {[%clk 0:03:00]}  Qa5 {[%clk 0:03:00]} 4. d4 {[%clk 0:02:59]}  c6 {[%clk 0:03:00]} 5. Nf3 {[%clk 0:02:51]}  Nf6 {[%clk 0:03:00]} 6. Bc4 {[%clk 0:02:38]}  Bf5 {[%clk 0:02:59]} 7. Bd2 {[%clk 0:02:31]}  e6 {[%clk 0:02:59]} 8. Qe2 {[%clk 0:02:24]}  Bb4 {[%clk 0:02:58]} 9. O-O-O {[%clk 0:02:20]}  Nbd7 {[%clk 0:02:47]} 10. a3 {[%clk 0:02:11]}  Bxc3 {[%clk 0:02:19]} 11. Bxc3 {[%clk 0:02:12]}  Qc7 {[%clk 0:02:19]} 12. h3 {[%clk 0:02:05]}  O-O {[%clk 0:02:16]} 13. g4 {[%clk 0:02:00]}  Bg6 {[%clk 0:02:14]} 14. Kb1 {[%clk 0:01:28]}  b5 {[%clk 0:02:02]} 15. Bd3 {[%clk 0:01:21]}  a5 {[%clk 0:02:01]} 16. Bd2 {[%clk 0:01:05]}  b4 {[%clk 0:01:54]} 17. a4 {[%clk 0:01:04]}  b3 {[%clk 0:01:46]} 18. cxb3 {[%clk 0:01:02]}  Rfb8 {[%clk 0:01:43]} 19. Bxg6 {[%clk 0:00:57]}  hxg6 {[%clk 0:01:43]} 20. Qc4 {[%clk 0:00:53]}  Nb6 {[%clk 0:01:34]} 21. Qd3 {[%clk 0:00:44]}  Nbd5 {[%clk 0:01:28]} 22. g5 {[%clk 0:00:37]}  Nh5 {[%clk 0:01:23]} 23. Ne5 {[%clk 0:00:32]}  Rb6 {[%clk 0:01:10]} 24. Rc1 {[%clk 0:00:30]}  Qb7 {[%clk 0:01:10]} 25. Ka2 {[%clk 0:00:24]}  Rb8 {[%clk 0:01:08]} 26. Bxa5 {[%clk 0:00:14]}  Rxb3 {[%clk 0:01:04]} 27. Qc4 {[%clk 0:00:06]} 0-1


[Site "https://www.chess.com"]